fUSD/lending_fUSD_20240217
["ID","MTS","AMOUNT","RATE_DAILY","PERIOD"]
[314306267,1708169445879,-158.166396,0.00054085,30]
[314306268,1708169445889,-158.166395,0.00054085,30]
[314306269,1708169445899,-6982.39311,0.000541,2]
[314306270,1708169445908,-2000.0,0.00054111,15]
[314306271,1708169445917,-200.0,0.00054111,15]
[314306272,1708169445926,-2000.0,0.00054111,15]
[314306273,1708169445935,-200.0,0.00054111,15]
[314306274,1708169445944,-2000.0,0.00054111,15]
[314306275,1708169445953,-200.0,0.00054111,15]
[314306276,1708169445962,-200.0,0.00054146,30]
[314306277,1708169445971,-200.0,0.00054146,30]
[314306278,1708169445980,-150.0,0.00054146,7]
[314306279,1708169445989,-223.021788,0.00054148,101]
[314306280,1708169445998,-500.0,0.00054162,120]
[314306281,1708169446007,-300.0,0.00054169,7]
[314306282,1708169446016,-300.0,0.00054178,7]
[314306283,1708169446026,-150.01,0.00054199,2]
[314306284,1708169446035,-3317.68767406,0.00054199,2]
[314306285,1708169446044,-160.01,0.00054221,2]
[314306286,1708169446053,-3000.0,0.0005423,69]
[314306287,1708169446062,-5420.0,0.00054246,60]
[314306288,1708169446071,-412.14,0.00054247,30]
[314306289,1708169446081,-419.0,0.00054247,30]
[314306290,1708169446090,-150.0,0.00054247,30]
[314306291,1708169446099,-343.57,0.00054247,30]
[314306292,1708169446109,-419.0,0.00054247,30]
[314306293,1708169446118,-412.14,0.00054247,30]
[314306294,1708169446128,-150.0,0.00054247,30]
[314306295,1708169446137,-343.57,0.00054247,30]
[314306296,1708169446146,-150.0,0.00054247,30]
[314306297,1708169446155,-412.14,0.00054247,30]
[314306298,1708169446164,-419.0,0.00054247,30]
[314306299,1708169446174,-412.14,0.00054247,30]
[314306300,1708169446183,-824.28,0.00054247,30]
[314306301,1708169446192,-412.14,0.00054247,30]
[314306302,1708169446203,-412.14,0.00054247,30]
[314306303,1708169446213,-824.28,0.00054247,30]
[314306304,1708169446222,-306.04,0.00054247,30]
[314306305,1708169446231,-604.0,0.00054249,7]
[314306306,1708169446241,-150.0,0.00054261,7]
[314306307,1708169446250,-500.0,0.00054268,120]
[314306308,1708169446259,-153.12985937,0.00054299,7]
[314306309,1708169446269,-1500.0,0.00054334,7]
[314306310,1708169446279,-5331.02501207,0.00054348,31]
[314306311,1708169446290,-500.0,0.00054373,120]
[314306312,1708169446298,-150.0,0.00054377,7]
[314306313,1708169446308,-183.59457966,0.000544,120]
[314306314,1708169446317,-160.0,0.00054411,120]
[314306315,1708169446326,-16244.772523,0.0005444,16]
[314306316,1708169446335,-370.0,0.00054443,30]
[314306317,1708169446344,-222.021788,0.00054448,101]
[314306318,1708169446353,-150.0,0.00054451,7]
[314306319,1708169446362,-150.0,0.00054452,7]
[314306320,1708169446371,-160.0,0.00054466,120]
[314306321,1708169446381,-150.0,0.00054466,7]
[314306322,1708169446390,-800.0,0.00054469,30]
[314306323,1708169446399,-150.0,0.00054472,7]
[314306324,1708169446409,-150.0,0.00054477,7]
[314306325,1708169446418,-81744.63327448,0.00054478,120]
[314306326,1708169446428,-500.0,0.00054478,120]
[314306327,1708169446438,-508.8302198,0.0005448,15]
[314306328,1708169446447,-150.0,0.00054482,7]
[314306329,1708169446456,-200.0,0.00054487,30]
[314306330,1708169446465,-1752.1458127,0.0005449,2]
[314306331,1708169446473,-2009.57004619,0.00054492,120]
[314306332,1708169446482,-568398.18575546,0.00054492,120]
[314306333,1708169446491,-152.0,0.00054499,120]
[314306334,1708169446500,-10000.0,0.000545,25]
[314306335,1708169446509,-5000.0,0.000545,64]
[314306336,1708169446518,-3000.0,0.000545,50]
[314306337,1708169446527,-5000.0,0.000545,64]
[314306338,1708169446537,-3000.0,0.000545,50]
[314306339,1708169446546,-989.48310961,0.00054501,7]
[314306340,1708169446555,-878.43053415,0.00054504,30]
[314306341,1708169446563,-150.0,0.00054509,7]
[314306342,1708169446572,-150.0,0.0005451,7]
[314306343,1708169446581,-150.0,0.00054527,7]
[314306344,1708169446590,-150.0,0.00054532,7]
[314306345,1708169446598,-150.0,0.00054539,7]
[314306346,1708169446607,-150.0,0.00054552,7]
[314306347,1708169446616,-150.0,0.00054567,7]
[314306348,1708169446625,-153.52681665,0.00054574,61]
[314306349,1708169446634,-1500.0,0.00054575,7]
[314306350,1708169446643,-500.0,0.00054584,120]
[314306351,1708169446652,-300.0,0.00054595,7]
[314306352,1708169446662,-150.0,0.00054603,7]
[314306353,1708169446671,-150.0,0.00054608,7]
[314306354,1708169446680,-205.0,0.00054615,20]
[314306355,1708169446689,-150.0,0.00054617,7]
[314306356,1708169446697,-300.0,0.00054626,7]
[314306357,1708169446707,-150.0,0.00054634,7]
[314306358,1708169446716,-158.23203844,0.00054634,60]
[314306359,1708169446725,-150.0,0.00054635,7]
[314306360,1708169446734,-150.0,0.0005465,7]
[314306361,1708169446743,-150.0,0.00054666,7]
[314306362,1708169446752,-1500.0,0.00054683,7]
[314306363,1708169446761,-500.0,0.00054689,120]
[314306364,1708169446770,-800.0,0.000547,30]
[314306365,1708169446779,-800.0,0.000547,30]
[314306366,1708169446787,-150.0,0.00054704,7]
[314306367,1708169446796,-150.0,0.00054704,7]
[314306368,1708169446805,-300.0,0.00054715,7]
[314306369,1708169446815,-150.0,0.00054724,7]
[314306370,1708169446824,-150.0,0.00054729,7]
[314306371,1708169446833,-300.0,0.00054745,7]
[314306372,1708169446842,-223.021788,0.00054748,102]
[314306373,1708169446851,-150.0,0.00054748,7]
[314306374,1708169446860,-150.0,0.00054763,7]
[314306375,1708169446869,-1500.0,0.00054768,7]
[314306376,1708169446878,-1500.0,0.00054775,7]
[314306377,1708169446887,-150.0,0.00054779,7]
[314306378,1708169446896,-150.0,0.00054784,7]
[314306379,1708169446905,-1500.0,0.00054788,7]
[314306380,1708169446914,-615.13998,0.00054794,30]
[314306381,1708169446923,-337.31522,0.00054794,120]
[314306382,1708169446932,-2460.559919,0.00054794,30]
[314306383,1708169446941,-2460.559919,0.00054794,30]
[314306384,1708169446950,-337.31522,0.00054794,120]
[314306385,1708169446959,-500.0,0.00054794,120]
[314306386,1708169446968,-493.74674152,0.00054794,120]
[314306387,1708169446978,-526.36941242,0.00054794,120]
[314306388,1708169446986,-500.0,0.00054794,120]
[314306389,1708169446995,-633.78,0.00054794,2]
[314306390,1708169447004,-537.5023735,0.00054794,120]
[314306391,1708169447013,-509.41875878,0.00054794,120]
[314306392,1708169447023,-512.59005959,0.00054794,120]
[314306393,1708169447114,-506.7366548,0.00054794,120]
[314306394,1708169447134,-515.96421052,0.00054794,120]
[314306395,1708169447144,-522.5849559,0.00054794,120]
[314306396,1708169447153,-534.69002319,0.00054794,120]
[314306397,1708169447162,-295.150817,0.00054794,120]
[314306398,1708169447171,-3690.839879,0.00054794,30]
[314306399,1708169447180,-590.301635,0.00054794,120]
[314306400,1708169447189,-2768.129909,0.00054794,30]
[314306401,1708169447198,-500.0,0.00054794,120]
[314306402,1708169447209,-437.39616331,0.00054794,120]
[314306403,1708169447218,-539.50685175,0.00054794,30]
[314306404,1708169447228,-2399.045921,0.00054794,30]
[314306405,1708169447237,-312.016578,0.00054794,120]
[314306406,1708169447246,-500.0,0.00054794,120]
[314306407,1708169447255,-1005.42496678,0.00054794,2]
[314306408,1708169447264,-1783.905942,0.00054794,30]
[314306409,1708169447272,-615.139979,0.00054794,30]
[314306410,1708169447282,-500.0,0.00054794,120]
[314306411,1708169447291,-532.8526136,0.00054794,120]
[314306412,1708169447300,-500.0,0.00054794,120]
[314306413,1708169447309,-530.49008151,0.00054794,120]
[314306414,1708169447317,-529.23879601,0.00054794,120]
[314306415,1708169447327,-1000.7444072,0.00054794,2]
[314306416,1708169447335,-509.12610304,0.00054794,120]
[314306417,1708169447344,-519.44408238,0.00054794,120]
[314306418,1708169447353,-500.0,0.00054794,120]
[314306419,1708169447363,-500.0,0.00054794,120]
[314306420,1708169447373,-500.0,0.00054794,120]
[314306421,1708169447382,-510.82181382,0.00054794,120]
[314306422,1708169447391,-593.26721663,0.00054794,120]
[314306423,1708169447400,-500.0,0.00054794,120]
[314306424,1708169447410,-500.0,0.00054794,120]
[314306425,1708169447419,-509.11628563,0.00054794,120]
[314306426,1708169447429,-500.0,0.00054794,7]
[314306427,1708169447438,-500.0,0.00054794,120]
[314306428,1708169447447,-500.0,0.00054794,120]
[314306429,1708169447456,-500.0,0.00054794,120]
[314306430,1708169447465,-518.5680107,0.00054794,120]
[314306431,1708169447474,-500.0,0.00054794,120]
[314306432,1708169447482,-262.16338056,0.00054794,120]
[314306433,1708169447492,-525.89740978,0.00054794,120]
[314306434,1708169447501,-500.0,0.00054794,120]
[314306435,1708169447510,-176.71156356,0.00054794,120]
[314306436,1708169447519,-524.45843297,0.00054794,120]
[314306437,1708169447528,-500.0,0.00054794,120]
[314306438,1708169447537,-509.0460758,0.00054794,120]
[314306439,1708169447546,-537.06737215,0.00054794,120]
[314306440,1708169447555,-524.03356389,0.00054794,120]
[314306441,1708169447564,-524.66876978,0.00054794,120]
[314306442,1708169447573,-500.0,0.00054794,120]
[314306443,1708169447582,-500.0,0.00054794,120]
[314306444,1708169447591,-535.02644965,0.00054794,120]
[314306445,1708169447600,-524.89362049,0.00054794,120]
[314306446,1708169447609,-500.0,0.00054794,120]
[314306447,1708169447618,-553.16004552,0.00054794,120]
[314306448,1708169447627,-500.0,0.00054794,120]
[314306449,1708169447636,-500.5541525,0.00054794,120]
[314306450,1708169447645,-500.0,0.00054794,120]
[314306451,1708169447654,-528.6689076,0.00054794,30]
[314306452,1708169447664,-500.0,0.00054794,2]
[314306453,1708169447673,-500.0,0.00054794,120]
[314306454,1708169447682,-523.94458061,0.00054794,120]
[314306455,1708169447691,-500.0,0.00054794,120]
[314306456,1708169447700,-500.0,0.00054794,120]
[314306457,1708169447709,-500.0,0.00054794,120]
[314306458,1708169447718,-527.15195277,0.00054794,120]
[314306459,1708169447727,-535.15496341,0.00054794,120]
[314306460,1708169447735,-560.53775813,0.00054794,120]
[314306461,1708169447743,-500.0,0.00054794,120]
[314306462,1708169447752,-518.00403318,0.00054794,120]
[314306463,1708169447761,-642.82248556,0.00054794,120]
[314306464,1708169447770,-474.61864417,0.00054794,120]
[314306465,1708169447779,-500.0,0.00054794,120]
[314306466,1708169447788,-509.83242708,0.00054794,120]
[314306467,1708169447797,-500.0,0.00054794,120]
[314306468,1708169447806,-519.89121865,0.00054794,120]
[314306469,1708169447814,-500.0,0.00054794,120]
[314306470,1708169447823,-500.0,0.00054794,120]
[314306471,1708169447832,-500.0,0.00054794,120]
[314306472,1708169447841,-340.80228542,0.00054794,120]
[314306473,1708169447850,-500.0,0.00054794,120]
[314306474,1708169447859,-500.0,0.00054794,120]
[314306475,1708169447868,-524.1151831,0.00054794,120]
[314306476,1708169447878,-500.0,0.00054794,120]
[314306477,1708169447887,-513.80829902,0.00054794,120]
[314306478,1708169447895,-500.0,0.00054794,120]
[314306479,1708169447904,-520.9361519,0.00054794,120]
[314306480,1708169447914,-500.0,0.00054794,120]
[314306481,1708169447923,-500.0,0.00054794,120]
[314306482,1708169447932,-333.38474123,0.00054794,120]
[314306483,1708169447941,-500.0,0.00054794,120]
[314306484,1708169447950,-502.45080842,0.00054794,120]
[314306485,1708169447958,-500.0,0.00054794,120]
[314306486,1708169447967,-540.50670351,0.00054794,120]
[314306487,1708169447976,-525.89522856,0.00054794,120]
[314306488,1708169447985,-520.64086645,0.00054794,120]
[314306489,1708169447994,-500.0,0.00054794,120]
[314306490,1708169448003,-517.9946921,0.00054794,120]
[314306491,1708169448012,-500.0,0.00054794,120]
[314306492,1708169448021,-532.33646259,0.00054794,120]
[314306493,1708169448030,-500.0,0.00054794,120]
[314306494,1708169448040,-500.0,0.00054794,120]
[314306495,1708169448049,-500.0,0.00054794,120]
[314306496,1708169448058,-500.0,0.00054794,2]
[314306497,1708169448067,-500.0,0.00054794,2]
[314306498,1708169448076,-500.0,0.00054794,2]
[314306499,1708169448085,-500.0,0.00054794,2]
[314306500,1708169448094,-636.2199776,0.00054794,2]
[314306501,1708169448103,-547.20419848,0.00054794,120]
[314306502,1708169448112,-544.71208913,0.00054794,120]
[314306503,1708169448121,-500.0,0.00054794,120]
[314306504,1708169448130,-500.0,0.00054794,120]
[314306505,1708169448139,-539.43297449,0.00054794,120]
[314306506,1708169448148,-563.18059403,0.00054794,120]
[314306507,1708169448157,-500.0,0.00054794,120]
[314306508,1708169448167,-526.44150384,0.00054794,120]
[314306509,1708169448176,-500.0,0.00054794,120]
[314306510,1708169448184,-500.0,0.00054794,2]
[314306511,1708169448194,-500.0,0.00054794,120]
[314306512,1708169448206,-562.38405658,0.00054794,120]
[314306513,1708169448215,-500.0,0.00054794,120]
[314306514,1708169448224,-500.0,0.00054794,120]
[314306515,1708169448234,-541.96788447,0.00054794,120]
[314306516,1708169448243,-546.20790943,0.00054794,120]
[314306517,1708169448252,-199.58004,0.00054794,2]
[314306518,1708169448262,-500.0,0.00054794,120]
[314306519,1708169448271,-500.0,0.00054794,120]
[314306520,1708169448283,-443.99661788,0.00054794,2]
[314306521,1708169448293,-500.0,0.00054794,120]
[314306522,1708169448302,-500.0,0.00054794,120]
[314306523,1708169448311,-500.0,0.00054794,120]
[314306524,1708169448320,-500.0,0.00054794,2]
[314306525,1708169448330,-500.0,0.00054794,7]
[314306526,1708169448339,-531.34230761,0.00054794,120]
[314306527,1708169448348,-157.32709944,0.00054794,7]
[314306528,1708169448357,-536.61838355,0.00054794,120]
[314306529,1708169448366,-500.0,0.00054794,120]
[314306530,1708169448375,-507.39890145,0.00054794,120]
[314306531,1708169448384,-500.0,0.00054794,120]
[314306532,1708169448394,-552.82396325,0.00054794,120]
[314306533,1708169448403,-269.40639238,0.00054794,120]
[314306534,1708169448412,-500.0,0.00054794,120]
[314306535,1708169448421,-500.0,0.00054794,120]
[314306536,1708169448431,-500.0,0.00054794,120]
[314306537,1708169448440,-548.81836257,0.00054794,120]
[314306538,1708169448449,-500.0,0.00054794,120]
[314306539,1708169448458,-500.0,0.00054794,120]
[314306540,1708169448467,-500.0,0.00054794,120]
[314306541,1708169448477,-500.0,0.00054794,2]
[314306542,1708169448486,-488.70689803,0.00054794,120]
[314306543,1708169448494,-500.0,0.00054794,120]
[314306544,1708169448503,-500.0,0.00054794,120]
[314306545,1708169448513,-500.0,0.00054794,120]
[314306546,1708169448522,-519.18415384,0.00054794,120]
[314306547,1708169448531,-500.0,0.00054794,120]
[314306548,1708169448541,-500.0,0.00054794,120]
[314306549,1708169448550,-816.67489785,0.00054794,2]
[314306550,1708169448559,-500.0,0.00054794,120]
[314306551,1708169448568,-500.0,0.00054794,120]
[314306552,1708169448577,-624.61673098,0.00054794,120]
[314306553,1708169448585,-500.0,0.00054794,120]
[314306554,1708169448594,-500.0,0.00054794,120]
[314306555,1708169448604,-500.0,0.00054794,120]
[314306556,1708169448612,-500.0,0.00054794,120]
[314306557,1708169448621,-527.02637147,0.00054794,120]
[314306558,1708169448631,-500.0,0.00054794,120]
[314306559,1708169448640,-500.0,0.00054794,120]
[314306560,1708169448649,-500.0,0.00054794,120]
[314306561,1708169448658,-531.51104237,0.00054794,120]
[314306562,1708169448668,-500.0,0.00054794,120]
[314306563,1708169448677,-548.65410803,0.00054794,120]
[314306564,1708169448686,-1000.0,0.00054794,120]
[314306565,1708169448695,-500.0,0.00054794,120]
[314306566,1708169448703,-500.0,0.00054794,120]
[314306567,1708169448713,-521.18448768,0.00054794,120]
[314306568,1708169448722,-500.0,0.00054794,120]
[314306569,1708169448731,-566.42358745,0.00054794,120]
[314306570,1708169448740,-500.0,0.00054794,120]
[314306571,1708169448749,-500.0,0.00054794,120]
[314306572,1708169448758,-555.44200631,0.00054794,120]
[314306573,1708169448768,-500.0,0.00054794,120]
[314306574,1708169448777,-500.0,0.00054794,120]
[314306575,1708169448786,-522.39098309,0.00054794,120]
[314306576,1708169448795,-500.0,0.00054794,120]
[314306577,1708169448804,-530.46648344,0.00054794,120]
[314306578,1708169448813,-535.28667173,0.00054794,120]
[314306579,1708169448821,-518.38277016,0.00054794,120]
[314306580,1708169448830,-524.41389706,0.00054794,120]
[314306581,1708169448839,-525.13269746,0.00054794,120]
[314306582,1708169448848,-500.0,0.00054794,120]
[314306583,1708169448857,-500.0,0.00054794,7]
[314306584,1708169448867,-500.0,0.00054794,120]
[314306585,1708169448876,-500.0,0.00054794,120]
[314306586,1708169448885,-503.00157731,0.00054794,120]
[314306587,1708169448893,-515.47901637,0.00054794,120]
[314306588,1708169448903,-500.0,0.00054794,120]
[314306589,1708169448999,-500.0,0.00054794,120]
[314306590,1708169449009,-590.70851985,0.00054794,120]
[314306591,1708169449017,-526.40752635,0.00054794,120]
[314306592,1708169449026,-500.0,0.00054794,120]
[314306593,1708169449036,-500.0,0.00054794,120]
[314306594,1708169449044,-521.75057454,0.00054794,120]
[314306595,1708169449054,-500.0,0.00054794,120]
[314306596,1708169449063,-1000.0,0.00054794,7]
[314306597,1708169449073,-528.14590144,0.00054794,120]
[314306598,1708169449082,-552.28353946,0.00054794,120]
[314306599,1708169449091,-515.27704809,0.00054794,120]
[314306600,1708169449100,-500.0,0.00054794,120]
[314306601,1708169449109,-500.0,0.00054794,120]
[314306602,1708169449119,-519.14911736,0.00054794,120]
[314306603,1708169449128,-518.56180245,0.00054794,120]
[314306604,1708169449137,-500.0,0.00054794,120]
[314306605,1708169449147,-500.0,0.00054794,120]
[314306606,1708169449156,-504.43584356,0.00054794,120]
[314306607,1708169449166,-150.0,0.00054794,120]
[314306608,1708169449176,-500.0,0.00054794,120]
[314306609,1708169449185,-573.10986952,0.00054794,120]
[314306610,1708169449194,-520.89304621,0.00054794,120]
[314306611,1708169449206,-544.97315036,0.00054794,120]
[314306612,1708169449215,-572.48281566,0.00054794,120]
[314306613,1708169449225,-458.57882539,0.00054794,120]
[314306614,1708169449234,-500.0,0.00054794,120]
[314306615,1708169449244,-546.31711893,0.00054794,120]
[314306616,1708169449253,-619.2953211,0.00054794,120]
[314306617,1708169449262,-500.0,0.00054794,120]
[314306618,1708169449271,-498.92018048,0.00054794,120]
[314306619,1708169449282,-554.58171665,0.00054794,120]
[314306620,1708169449291,-500.0,0.00054794,120]
[314306621,1708169449301,-500.0,0.00054794,120]
[314306622,1708169449310,-212.9669228,0.00054794,120]
[314306623,1708169449319,-500.0,0.00054794,120]
[314306624,1708169449328,-500.0,0.00054794,120]
[314306625,1708169449337,-548.85442974,0.00054794,120]
[314306626,1708169449346,-280.03681728,0.00054794,120]
[314306627,1708169449355,-513.5759273,0.00054794,120]
[314306628,1708169449364,-558.57814119,0.00054794,120]
[314306629,1708169449374,-538.20127631,0.00054794,120]
[314306630,1708169449382,-524.88,0.00054794,120]
[314306631,1708169449391,-500.0,0.00054794,120]
[314306632,1708169449400,-500.0,0.00054794,120]
[314306633,1708169449409,-500.0,0.00054794,120]
[314306634,1708169449418,-744.32,0.00054794,120]
[314306635,1708169449428,-282.8206388,0.00054794,120]
[314306636,1708169449437,-500.0,0.00054794,120]
[314306637,1708169449446,-500.0,0.00054794,120]
[314306638,1708169449455,-500.0,0.00054794,120]
[314306639,1708169449464,-500.0,0.00054794,120]
[314306640,1708169449473,-531.47654566,0.00054794,120]
[314306641,1708169449482,-538.14805902,0.00054794,120]
[314306642,1708169449491,-500.0,0.00054794,120]
[314306643,1708169449500,-500.0,0.00054794,120]
[314306644,1708169449509,-500.0,0.00054794,120]
[314306645,1708169449517,-500.0,0.00054794,120]
[314306646,1708169449527,-500.0,0.00054794,120]
[314306647,1708169449536,-500.0,0.00054794,120]
[314306648,1708169449545,-500.0,0.00054794,120]
[314306649,1708169449554,-500.0,0.00054794,120]
[314306650,1708169449563,-531.61706176,0.00054794,120]
[314306651,1708169449573,-446.90560378,0.00054794,120]
[314306652,1708169449582,-547.79814095,0.00054794,120]
[314306653,1708169449591,-500.0,0.00054794,2]
[314306654,1708169449600,-509.69932775,0.00054794,120]
[314306655,1708169449608,-477.79030947,0.00054794,120]
[314306656,1708169449617,-500.0,0.00054794,120]
[314306657,1708169449626,-500.0,0.00054794,120]
[314306658,1708169449635,-500.0,0.00054794,120]
[314306659,1708169449643,-500.0,0.00054794,120]
[314306660,1708169449652,-500.0,0.00054794,120]
[314306661,1708169449661,-500.0,0.00054794,120]
[314306662,1708169449671,-533.82285125,0.00054794,120]
[314306663,1708169449680,-500.0,0.00054794,120]
[314306664,1708169449689,-313.70492157,0.00054794,120]
[314306665,1708169449699,-500.0,0.00054794,120]
[314306666,1708169449707,-500.0,0.00054794,120]
[314306667,1708169449717,-500.0,0.00054794,120]
[314306668,1708169449726,-500.0,0.00054794,120]
[314306669,1708169449734,-500.0,0.00054794,120]
[314306670,1708169449744,-500.0,0.00054794,120]
[314306671,1708169449752,-555.53018768,0.00054794,120]
[314306672,1708169449762,-500.0,0.00054794,120]
[314306673,1708169449770,-500.0,0.00054794,120]
[314306674,1708169449779,-1000.0,0.00054794,2]
[314306675,1708169449788,-500.0,0.00054794,120]
[314306676,1708169449797,-500.0,0.00054794,120]
[314306677,1708169449807,-500.0,0.00054794,120]
[314306678,1708169449816,-537.64283913,0.00054794,120]
[314306679,1708169449825,-500.0,0.00054794,120]
[314306680,1708169449834,-500.0,0.00054794,120]
[314306681,1708169449843,-500.0,0.00054794,120]
[314306682,1708169449852,-500.0,0.00054794,120]
[314306683,1708169449861,-500.0,0.00054794,120]
[314306684,1708169449871,-312.20773967,0.00054794,120]
[314306685,1708169449880,-566.11653482,0.00054794,120]
[314306686,1708169449889,-500.0,0.00054794,120]
[314306687,1708169449897,-522.03454508,0.00054794,120]
[314306688,1708169449906,-500.0,0.00054794,120]
[314306689,1708169449915,-500.0,0.00054794,7]
[314306690,1708169449924,-517.58227991,0.00054794,120]
[314306691,1708169449932,-500.0,0.00054794,120]
[314306692,1708169449941,-500.0,0.00054794,120]
[314306693,1708169449950,-500.0,0.00054794,120]
[314306694,1708169449959,-285.93860935,0.00054794,120]
[314306695,1708169449968,-500.0,0.00054794,120]
[314306696,1708169449977,-500.0,0.00054794,120]
[314306697,1708169449986,-500.0,0.00054794,120]
[314306698,1708169449996,-500.0,0.00054794,120]
[314306699,1708169450005,-500.0,0.00054794,120]
[314306700,1708169450014,-500.0,0.00054794,120]
[314306701,1708169450023,-500.0,0.00054794,120]
[314306702,1708169450031,-1025.71389737,0.00054794,7]
[314306703,1708169450040,-500.0,0.00054794,120]
[314306704,1708169450049,-500.0,0.00054794,120]
[314306705,1708169450058,-500.0,0.00054794,120]
[314306706,1708169450067,-554.40912725,0.00054794,120]
[314306707,1708169450076,-500.0,0.00054794,120]
[314306708,1708169450085,-500.0,0.00054794,120]
[314306709,1708169450094,-500.0,0.00054794,120]
[314306710,1708169450104,-500.0,0.00054794,120]
[314306711,1708169450113,-500.0,0.00054794,120]
[314306712,1708169450122,-521.07936749,0.00054794,120]
[314306713,1708169450131,-559.60669253,0.00054794,120]
[314306714,1708169450140,-500.0,0.00054794,120]
[314306715,1708169450150,-511.70092471,0.00054794,120]
[314306716,1708169450159,-500.0,0.00054794,120]
[314306717,1708169450169,-612.2897952,0.00054794,120]
[314306718,1708169450179,-500.0,0.00054794,120]
[314306719,1708169450188,-500.0,0.00054794,120]
[314306720,1708169450198,-500.0,0.00054794,120]
[314306721,1708169450211,-527.9155053,0.00054794,120]
[314306722,1708169450221,-500.0,0.00054794,120]
[314306723,1708169450230,-302.05426186,0.00054794,120]
[314306724,1708169450239,-500.0,0.00054794,120]
[314306725,1708169450249,-229.83610695,0.00054794,120]
[314306726,1708169450259,-921.44,0.00054794,120]
[314306727,1708169450268,-500.0,0.00054794,120]
[314306728,1708169450277,-2114.31,0.00054794,120]
[314306729,1708169450287,-500.0,0.00054794,120]
[314306730,1708169450296,-500.0,0.00054794,120]
[314306731,1708169450306,-522.47500737,0.00054794,120]
[314306732,1708169450315,-494.2555993,0.00054794,120]
[314306733,1708169450325,-550.97264739,0.00054794,120]
[314306734,1708169450334,-500.0,0.00054794,120]
[314306735,1708169450343,-500.0,0.00054794,120]
[314306736,1708169450352,-503.07614817,0.00054794,120]
[314306737,1708169450362,-500.0,0.00054794,120]
[314306738,1708169450371,-500.0,0.00054794,120]
[314306739,1708169450380,-500.0,0.00054794,120]
[314306740,1708169450389,-500.0,0.00054794,120]
[314306741,1708169450398,-500.0,0.00054794,120]
[314306742,1708169450408,-518.62396801,0.00054794,120]
[314306743,1708169450417,-500.0,0.00054794,120]
[314306744,1708169450427,-500.0,0.00054794,120]
[314306745,1708169450436,-500.0,0.00054794,120]
[314306746,1708169450445,-603.73881311,0.00054794,120]
[314306747,1708169450454,-500.0,0.00054794,120]
[314306748,1708169450463,-500.0,0.00054794,120]
[314306749,1708169450472,-500.0,0.00054794,120]
[314306750,1708169450482,-1613.29,0.00054794,120]
[314306751,1708169450491,-575.31813835,0.00054794,120]
[314306752,1708169450501,-500.0,0.00054794,120]
[314306753,1708169450510,-560.76,0.00054794,120]
[314306754,1708169450519,-404.07000559,0.00054794,120]
[314306755,1708169450528,-500.0,0.00054794,120]
[314306756,1708169450537,-500.0,0.00054794,120]
[314306757,1708169450546,-500.0,0.00054794,120]
[314306758,1708169450556,-500.0,0.00054794,120]
[314306759,1708169450565,-500.0,0.00054794,120]
[314306760,1708169450574,-500.0,0.00054794,120]
[314306761,1708169450583,-500.0,0.00054794,120]
[314306762,1708169450593,-500.0,0.00054794,120]
[314306763,1708169450602,-500.0,0.00054794,120]
[314306764,1708169450611,-500.0,0.00054794,120]
[314306765,1708169450621,-500.0,0.00054794,120]
[314306766,1708169450630,-500.0,0.00054794,120]